[Event "EYTCC U18 Girls 2018"]
[Site "Bad Blankeburg"]
[Date "2018.07.17"]
[Round "6"]
[White "Ciolacu, Alessia-Mihaela"]
[Black "Kiolbasa, Oliwia"]
[Result "0-1"]
[ECO "A47"]
[WhiteElo "1938"]
[BlackElo "2189"]
[Annotator "NA"]
[PlyCount "62"]
[EventDate "2018.07.12"]
[EventType "swiss"]
[EventCountry "GER"]
[SourceTitle "playchess.com"]
[Source "ChessBase"]
[SourceQuality "1"]
[TimeControl "40/5400+30:1800+30"]

1. d4 {[%emt 0:00:00]} Nf6 {[%emt 0:00:00]} 2. Nf3 {[%emt 0:00:00]} b6 {[%emt 0:00:00]} 3. c4 {[%emt 0:00:22]} Bb7 {[%emt 0:00:22]} 4. e3 {[%emt 0:01:09]} e6 {[%emt 0:05:49]} 5. Bd3 {[%emt 0:00:31]} Bb4+ {[%emt 0:05:59]} 6. Nc3 {[%emt 0:07:33]} Ne4 {[%emt 0:04:04]} 7. Qc2 {[%emt 0:04:31]} f5 {[%emt 0:00:50]} 8. Bd2 {[%emt 0:08:34] E43: Nimzoindisch (Rubinstein-System)} (8. O-O Bxc3 9. bxc3 O-O 10. c5 bxc5 11. Ne1 cxd4 12. cxd4 Nc6 13. Ba3 Rf6 14. Rb1 Rb8 15. Nf3 Rg6 16. Rfc1 Nf6 17. Bf1 Nd5 {½-½ (32) Wang,Y (2706)-Bu,X (2713) China 2017}) 8... Nxd2 {[%emt 0:04:07]} 9. Qxd2 {[%emt 0:03:37]} O-O {[%emt 0:02:24]} 10. a3 {[%emt 0:03:37]} Bxc3 $1 {[%emt 0:04:28]} 11. Qxc3 {[%emt 0:00:08]} a5 {[%emt 0:00:13]} 12. h4 $146 {[%emt 0:10:11]} ({Vorgänger:} 12. O-O-O c5 13. h4 cxd4 14. Qxd4 {1-0 (47) Saharinen,P (1935)-Salonen,J (1924) ICCF email 2007}) 12... d6 {[%emt 0:02:44]} 13. O-O-O {[%emt 0:07:58]} Nd7 {[%emt 0:01:19]} 14. Kb1 {[%emt 0:00:44]} Qe7 {[%emt 0:03:51]} 15. h5 {[%emt 0:04:27]} Nf6 {[%emt 0:02:48]} 16. d5 {[%emt 0:12:52]} exd5 {[%emt 0:02:41]} 17. Bxf5 {[%emt 0:01:47]} Ne4 {[%emt 0:00:57]} 18. Bxe4 {[%emt 0:03:15]} Qxe4+ {[%emt 0:05:35]} 19. Ka1 {[%emt 0:00:21]} Qxc4 {[%emt 0:00:12]} 20. Qd2 {[%emt 0:00:57]} c5 {[%emt 0:04:31]} 21. Rc1 {[%emt 0:05:56]} Qb3 {[%emt 0:03:00]} 22. Rc3 $17 {[%emt 0:02:35]} Qa4 {[%emt 0:00:55]} 23. Ng5 {[%emt 0:03:38]} Qg4 {[%emt 0:09:04]} 24. f4 {[%emt 0:10:20]} h6 {[%emt 0:01:31]} 25. Nf3 {[%emt 0:00:17]} b5 {[%emt 0:01:38]} 26. Rh4 {[%emt 0:01:19]} Qe6 {[%emt 0:02:54]} 27. g4 {[%emt 0:01:07]} b4 {[%emt 0:01:31]} 28. Rd3 {[%emt 0:01:02]} Rae8 {[%emt 0:04:21]} 29. g5 {[%emt 0:04:09]} c4 {[%emt 0:00:47]} 30. Rd4 {[%emt 0:00:08]} Qxe3 {[%emt 0:00:36]} 31. Qg2 {[%emt 0:00:56]} Qc1+ {[%emt 0:00:26]} 0-1

[Event "EYTCC U18 Girls 2018"]
[Site "Bad Blankeburg"]
[Date "2018.07.18"]
[Round "7"]
[White "Gajcin, Marina"]
[Black "Hrescak, Ivana"]
[Result "1-0"]
[ECO "B36"]
[WhiteElo "2269"]
[BlackElo "2129"]
[Annotator "NA"]
[PlyCount "117"]
[EventDate "2018.07.12"]
[EventType "swiss"]
[EventCountry "GER"]
[SourceTitle "playchess.com"]
[Source "ChessBase"]
[SourceQuality "1"]
[WhiteTeam "Serbia"]
[BlackTeam "Slovenia"]
[WhiteTeamCountry "SRB"]
[BlackTeamCountry "SLO"]
[TimeControl "40/5400+30:1800+30"]

1. e4 {[%emt 0:00:00]} c5 {[%emt 0:00:00]} 2. Nf3 {[%emt 0:00:00]} g6 {[%emt 0:00:26]} 3. d4 {[%emt 0:01:00]} cxd4 {[%emt 0:00:37]} 4. Nxd4 {[%emt 0:00:34]} Nc6 {[%emt 0:02:43]} 5. c4 {[%emt 0:00:48]} Nf6 {[%emt 0:02:37]} 6. Nc3 {[%emt 0:00:35]} Nxd4 7. Qxd4 {[%emt 0:00:12]} d6 {[%emt 0:04:49]} 8. f3 {[%emt 0:00:48]} Bg7 {[%emt 0:00:27] LiveBook: 293 Games} 9. Be3 {[%emt 0:00:06]} O-O {[%emt 0:00:38]} 10. Qd2 {[%emt 0:00:03]} Be6 {[%emt 0:02:55]} 11. Rc1 {[%emt 0:04:26]} Qa5 {[%emt 0:04:52]} 12. b3 {[%emt 0:04:49]} Rfc8 {[%emt 0:03:05]} 13. Be2 {[%emt 0:00:16]} a6 {[%emt 0:00:29]} 14. Na4 {[%emt 0:14:08]} Qxd2+ {[%emt 0:02:37]} 15. Kxd2 {[%emt 0:00:06]} Nd7 {[%emt 0:03:08]} 16. Rhd1 {[%emt 0:01:57]} Rc6 {[%emt 0:08:09] [#] B36: Sicilian: Maroczy Bind: Gurgenidze System} 17. Ke1 $146 {[%emt 0:01:52]} ({Predecessor:} 17. Nc3 Kf8 18. Nd5 Bxd5 19. cxd5 Rcc8 20. Rxc8+ Rxc8 21. Rc1 Rxc1 22. Kxc1 e6 23. dxe6 fxe6 24. Kc2 {1-0 (45) Stanec,N (2536)-Georgiadis,N (2328) Vienna 2011}) 17... Rb8 {[%emt 0:05:55]} 18. f4 {[%emt 0:06:47]} b5 {[%emt 0:15:43]} 19. cxb5 {[%emt 0:03:03]} Rxc1 {[%emt 0:00:01]} 20. Rxc1 {[%emt 0:00:05]} axb5 {[%emt 0:00:03]} 21. Nc3 {[%emt 0:00:11]} b4 {[%emt 0:00:58]} 22. Na4 {[%emt 0:02:05]} f5 {[%emt 0:02:04]} 23. exf5 {[%emt 0:16:26]} gxf5 {[%emt 0:00:04]} 24. Rc7 {[%emt 0:01:08]} Kf8 {[%emt 0:14:44]} 25. Ba7 {[%emt 0:13:01]} Rd8 {[%emt 0:05:10]} 26. g3 {[%emt 0:00:37]} Nf6 {[%emt 0:01:57]} 27. Rb7 {[%emt 0:01:16]} Ne4 {[%emt 0:05:44]} 28. Rxb4 {[%emt 0:13:22]} Nc3 {[%emt 0:00:00]} 29. Bd4 {[%emt 0:00:47]} Nxa2 {[%emt 0:04:45]} 30. Bxg7+ {[%emt 0:00:04]} Kxg7 {[%emt 0:00:01]} 31. Rb7 {[%emt 0:00:06]} Rd7 {[%emt 0:02:09]} 32. Rxd7 {[%emt 0:03:16]} Bxd7 {[%emt 0:00:01]} 33. Nb6 {[%emt 0:00:44]} Bc6 {[%emt 0:04:54]} 34. Kd2 {[%emt 0:00:15]} Kf6 {[%emt 0:01:16]} 35. Nc4 {[%emt 0:03:58]} Bd5 {[%emt 0:01:41]} 36. Kc2 {[%emt 0:00:44]} Bxc4 {[%emt 0:02:44]} 37. Bxc4 {[%emt 0:00:24]} d5 {[%emt 0:00:20]} 38. Bf1 {[%emt 0:04:31]} (38. Bb5 $16) 38... d4 {[%emt 0:00:38]} (38... e5 $11 {keeps the balance.}) 39. Kd3 {[%emt 0:00:21]} e5 {[%emt 0:00:32]} 40. Kc4 {[%emt 0:02:28]} Nc3 {[%emt 0:00:27]} 41. b4 {[%emt 0:05:55]} Ke6 {[%emt 0:15:21] [#]} 42. b5 $1 {[%emt 0:04:46]} Nxb5 {[%emt 0:14:14]} 43. Kxb5 {[%emt 0:00:21]} Kd5 {[%emt 0:00:17]} 44. Bg2+ {[%emt 0:15:57]} e4 {[%emt 0:00:14]} 45. Kb4 {[%emt 0:00:01]} h5 {[%emt 0:02:10]} 46. Bh1 {[%emt 0:00:31]} d3 {[%emt 0:00:27]} 47. Kc3 {[%emt 0:00:03]} Ke6 {[%emt 0:00:49]} 48. Bg2 {[%emt 0:00:11]} Kf6 {[%emt 0:00:25]} 49. Kd2 {[%emt 0:00:41]} Ke6 {[%emt 0:00:28]} 50. Ke3 {[%emt 0:00:13]} Kd5 {[%emt 0:00:30]} 51. Bh3 {[%emt 0:00:24]} Ke6 {[%emt 0:00:28]} 52. Bf1 {[%emt 0:03:50]} Kd5 {[%emt 0:00:01]} 53. h3 {[%emt 0:00:42]} Ke6 {[%emt 0:01:04]} 54. g4 {[%emt 0:00:34]} hxg4 {[%emt 0:00:35]} 55. hxg4 {[%emt 0:00:02]} fxg4 {[%emt 0:00:19]} 56. Kxe4 {[%emt 0:00:12]} g3 {[%emt 0:00:17]} 57. Kxd3 {[%emt 0:00:14]} Kf5 {[%emt 0:00:47]} 58. Ke3 {[%emt 0:00:02]} Kg4 {[%emt 0:00:06]} 59. Ke4 {[%emt 0:00:09]} 1-0

[Event "EYTCC U18 Girls 2018"]
[Site "Bad Blankeburg"]
[Date "2018.07.18"]
[Round "7"]
[White "Schneider, Jana"]
[Black "Pribylova, Sofie"]
[Result "1/2-1/2"]
[ECO "B52"]
[WhiteElo "2234"]
[BlackElo "1931"]
[Annotator "NA"]
[PlyCount "77"]
[EventDate "2018.07.12"]
[EventType "swiss"]
[EventCountry "GER"]
[SourceTitle "playchess.com"]
[Source "ChessBase"]
[SourceQuality "1"]
[WhiteTeam "Germany"]
[BlackTeam "Czech Republic"]
[WhiteTeamCountry "GER"]
[BlackTeamCountry "CZE"]
[TimeControl "40/5400+30:1800+30"]

1. e4 {[%emt 0:00:00]} c5 {[%emt 0:00:00]} 2. Nf3 {[%emt 0:00:00]} d6 {[%emt 0:00:00]} 3. Bb5+ {[%emt 0:00:00]} Bd7 {[%emt 0:00:00]} 4. Bxd7+ {[%emt 0:00:00]} Qxd7 {[%emt 0:00:10]} 5. c4 {[%emt 0:00:13]} Nc6 {[%emt 0:01:06]} 6. d4 {[%emt 0:00:28]} cxd4 {[%emt 0:00:43]} 7. Nxd4 {[%emt 0:00:09]} Nf6 {[%emt 0:00:54]} 8. Nc3 {[%emt 0:00:10]} g6 {[%emt 0:01:29]} 9. b3 {[%emt 0:00:21]} Bg7 {[%emt 0:00:55]} 10. Bb2 {[%emt 0:00:10]} O-O {[%emt 0:02:36]} 11. O-O {[%emt 0:02:43]} Rfd8 {[%emt 0:02:14] B52: Sicilian: Moscow Variation with 3...Bd7} (11... Rac8 12. Re1 Rfd8 13. Nd5 Ne8 14. Qd2 e6 15. Ne3 Nf6 16. Qc2 d5 17. e5 Nh5 18. Rad1 Qe7 19. g3 Rb8 20. Bc3 Qa3 21. Rd3 a5 22. Red1 Qc5 23. Qd2 Rdc8 {½-½ (23) Yu,Y (2725)-Lu,S (2607) Shenzhen 2016}) 12. Nxc6 {[%emt 0:05:26]} bxc6 {[%emt 0:04:11]} 13. Qe2 {[%emt 0:02:07]} Qc7 $146 {[%emt 0:30:58]} ({Predecessor:} 13... e6 14. Rad1 d5 15. e5 Ne8 16. Rfe1 Qe7 17. Na4 Rac8 18. Bd4 c5 19. Bb2 {1-0 (75) Bartel,M (2337)-Pacan Milej,K (2316) Poronin 2017}) 14. Rad1 {[%emt 0:02:58]} Rd7 {[%emt 0:01:53]} 15. Rd3 {[%emt 0:03:14]} Rad8 {[%emt 0:01:09]} 16. Rfd1 {[%emt 0:00:24]} Nh5 {[%emt 0:08:08]} 17. g3 {[%emt 0:02:34]} Nf6 {[%emt 0:03:38]} 18. Na4 {[%emt 0:06:02]} c5 {[%emt 0:08:46]} (18... h5 $14) 19. e5 {[%emt 0:04:34]} Ne8 {[%emt 0:00:34]} 20. Qd2 {[%emt 0:12:48]} e6 {[%emt 0:05:11]} 21. f4 {[%emt 0:07:00]} d5 {[%emt 0:09:50]} 22. Bc3 {[%emt 0:05:45]} Qc6 {[%emt 0:04:14]} 23. Ba5 {[%emt 0:00:38]} Nc7 {[%emt 0:01:22]} 24. Nc3 {[%emt 0:13:57]} d4 {[%emt 0:03:30]} 25. Nb5 {[%emt 0:01:26]} Nxb5 {[%emt 0:00:21]} 26. cxb5 {[%emt 0:00:03]} Qxb5 {[%emt 0:00:07]} 27. a4 {[%emt 0:01:17]} Qb7 {[%emt 0:01:12]} 28. Bxd8 {[%emt 0:00:19]} Rxd8 {[%emt 0:00:01]} 29. Qa5 {[%emt 0:01:31]} Rc8 {[%emt 0:00:32]} 30. Qb5 {[%emt 0:04:58]} Qd5 31. Rc1 {[%emt 0:01:47]} Bf8 $14 {[%emt 0:05:48]} 32. Qc4 {[%emt 0:01:03]} Qe4 {[%emt 0:01:15]} 33. Kf2 {[%emt 0:04:37]} Rb8 {[%emt 0:00:57]} 34. Re1 {[%emt 0:04:43]} Qb7 {[%emt 0:01:06]} 35. g4 {[%emt 0:00:51]} Be7 {[%emt 0:00:27]} 36. Rh3 {[%emt 0:01:00]} Qc7 {[%emt 0:01:29]} 37. f5 {[%emt 0:03:05]} Rb4 {[%emt 0:00:55]} 38. Qc1 {[%emt 0:01:41]} Bf8 {[%emt 0:00:45]} 39. Qg5 {[%emt 0:05:37]} 1/2-1/2

[Event "EYTCC U18 Girls 2018"]
[Site "Bad Blankeburg"]
[Date "2018.07.18"]
[Round "7"]
[White "Kiolbasa, Oliwia"]
[Black "Blazeka, Mihaela"]
[Result "1/2-1/2"]
[ECO "C60"]
[WhiteElo "2189"]
[BlackElo "2054"]
[Annotator "NA"]
[PlyCount "61"]
[EventDate "2018.07.12"]
[EventType "swiss"]
[EventCountry "GER"]
[SourceTitle "playchess.com"]
[Source "ChessBase"]
[SourceQuality "1"]
[WhiteTeam "Poland"]
[BlackTeam "Croatia"]
[WhiteTeamCountry "POL"]
[BlackTeamCountry "CRO"]
[TimeControl "40/5400+30:1800+30"]

1. e4 {[%emt 0:00:00]} e5 {[%emt 0:00:00]} 2. Nf3 {[%emt 0:00:00]} Nc6 {[%emt 0:00:00]} 3. Bb5 {[%emt 0:00:00]} g6 {[%emt 0:00:09]} 4. d4 {[%emt 0:10:26]} exd4 {[%emt 0:00:43]} 5. Bg5 {[%emt 0:01:22]} Be7 {[%emt 0:04:59]} 6. Bxe7 {[%emt 0:01:17]} Ngxe7 {[%emt 0:02:45]} 7. Nxd4 {[%emt 0:05:33]} d5 {[%emt 0:10:59]} 8. Nc3 {[%emt 0:05:40]} O-O {[%emt 0:06:41]} 9. exd5 $11 {[%emt 0:19:24] LiveBook: 3 Games} (9. Bxc6 $14 bxc6 10. O-O) 9... Nxd4 {[%emt 0:16:05]} 10. Qxd4 {[%emt 0:00:15]} c6 {[%emt 0:00:04]} 11. Be2 {[%emt 0:01:02]} Be6 {[%emt 0:04:55]} 12. Ne4 {[%emt 0:10:00]} Nxd5 {[%emt 0:07:58]} 13. c4 {[%emt 0:01:48]} Nb4 {[%emt 0:03:31]} 14. Qc3 {[%emt 0:05:15]} Qd4 {[%emt 0:00:42]} 15. Nf6+ {[%emt 0:06:04]} Kh8 {[%emt 0:03:15]} 16. Qxb4 {[%emt 0:00:56]} Qxf6 {[%emt 0:01:01]} 17. O-O {[%emt 0:00:31]} Qe5 {[%emt 0:12:38]} 18. Bf3 {[%emt 0:01:42]} Qc7 {[%emt 0:00:08]} 19. Rad1 {[%emt 0:00:23]} Rad8 {[%emt 0:00:23]} 20. b3 {[%emt 0:00:57]} Kg8 {[%emt 0:01:34]} 21. h4 {[%emt 0:09:15]} h5 {[%emt 0:05:11]} 22. Qc5 {[%emt 0:08:37]} a6 {[%emt 0:01:03]} 23. Bxh5 {[%emt 0:02:14]} gxh5 {[%emt 0:05:49]} 24. Qg5+ {[%emt 0:00:07]} Kh7 {[%emt 0:00:13]} 25. Qxh5+ {[%emt 0:00:03]} Kg7 {[%emt 0:00:35]} 26. Qg5+ {[%emt 0:00:01]} Kh7 {[%emt 0:00:14]} 27. Qh5+ {[%emt 0:00:03]} Kg7 {[%emt 0:00:06]} 28. Qg5+ {[%emt 0:00:02]} Kh7 {[%emt 0:00:10]} 29. Qh5+ {[%emt 0:00:03]} Kg7 {[%emt 0:00:05]} 30. Qg5+ {[%emt 0:00:01]} Kh7 {[%emt 0:00:16]} 31. Qh5+ {[%emt 0:00:03]} 1/2-1/2

[Event "EYTCC U18 Girls 2018"]
[Site "Bad Blankeburg"]
[Date "2018.07.18"]
[Round "7"]
[White "Nemcova, Karin"]
[Black "Sieber, Fiona"]
[Result "1-0"]
[ECO "B90"]
[WhiteElo "2133"]
[BlackElo "2283"]
[Annotator "NA"]
[PlyCount "127"]
[EventDate "2018.07.12"]
[EventType "swiss"]
[EventCountry "GER"]
[SourceTitle "playchess.com"]
[Source "ChessBase"]
[SourceQuality "1"]
[WhiteTeam "Czech Republic"]
[BlackTeam "Germany"]
[WhiteTeamCountry "CZE"]
[BlackTeamCountry "GER"]
[TimeControl "40/5400+30:1800+30"]

1. e4 {[%emt 0:00:00]} c5 {[%emt 0:00:00]} 2. Nf3 {[%emt 0:00:00]} d6 {[%emt 0:00:00]} 3. d4 {[%emt 0:00:00]} cxd4 {[%emt 0:00:00]} 4. Nxd4 {[%emt 0:00:00]} Nf6 {[%emt 0:00:00]} 5. Nc3 {[%emt 0:00:11]} a6 {[%emt 0:00:00]} 6. Be3 {[%emt 0:00:38]} e6 {[%emt 0:00:00]} 7. Be2 {[%emt 0:01:38]} Be7 {[%emt 0:00:35]} 8. O-O {[%emt 0:00:26]} O-O {[%emt 0:00:07]} 9. f4 {[%emt 0:01:48]} Qc7 {[%emt 0:00:15]} 10. Qe1 {[%emt 0:04:05]} b5 {[%emt 0:01:28]} 11. a3 {[%emt 0:02:24] LiveBook: 58 Games} Bb7 {[%emt 0:01:33]} 12. Bd3 {[%emt 0:00:23]} Ng4 {[%emt 0:17:00] B84: Sicilian Scheveningen: 6 Be2 a6, lines without early Be3} 13. Kh1 {[%emt 0:05:59]} Nxe3 {[%emt 0:00:26]} 14. Qxe3 {[%emt 0:00:03] [#]} Qc5 $146 {[%emt 0:19:37]} ({Predecessor:} 14... Nd7 15. f5 e5 16. Nb3 Nf6 17. Rad1 Rad8 18. Nc1 Rfe8 19. N1a2 d5 20. Nxd5 Bxd5 21. exd5 e4 22. Be2 Qxc2 23. Nc3 Qxb2 {0-1 (23) Diepeveen,V (2323)-Ftacnik,L (2544) Netherlands 2016}) 15. Rae1 {[%emt 0:06:09]} Bh4 {[%emt 0:06:32]} 16. Re2 {[%emt 0:03:16]} Nc6 {[%emt 0:00:36]} 17. Nxc6 {[%emt 0:02:55]} Qxe3 {[%emt 0:00:08]} 18. Rxe3 {[%emt 0:00:14]} Bxc6 {[%emt 0:00:03]} 19. e5 {[%emt 0:01:04]} Be7 {[%emt 0:01:23]} 20. Ne4 {[%emt 0:14:04]} dxe5 {[%emt 0:11:52]} 21. fxe5 {[%emt 0:01:02]} Rfd8 {[%emt 0:00:50]} 22. Ref3 {[%emt 0:02:49]} Be8 {[%emt 0:00:48]} 23. Rg3 {[%emt 0:01:54]} Kh8 {[%emt 0:01:43]} 24. Ng5 {[%emt 0:09:15]} Bxg5 {[%emt 0:00:05]} 25. Rxg5 {[%emt 0:00:10]} Rac8 {[%emt 0:00:46]} 26. Rg4 {[%emt 0:06:05]} Rd5 {[%emt 0:05:30]} 27. Re1 {[%emt 0:01:18]} Kg8 {[%emt 0:01:14]} 28. h3 {[%emt 0:01:07]} h6 {[%emt 0:00:26]} 29. Re3 {[%emt 0:02:35]} Kf8 {[%emt 0:03:22]} 30. Kh2 {[%emt 0:03:01]} Rcc5 {[%emt 0:00:47]} 31. Rge4 {[%emt 0:06:43]} Bc6 {[%emt 0:00:14]} 32. Re2 {[%emt 0:03:25]} Rxd3 {[%emt 0:02:06]} 33. cxd3 {[%emt 0:00:01]} Bxe4 {[%emt 0:00:06]} 34. Rxe4 {[%emt 0:00:09]} a5 {[%emt 0:01:29]} 35. Re2 {[%emt 0:12:04]} Ke7 {[%emt 0:05:20]} 36. Kg3 {[%emt 0:01:18]} Rc1 {[%emt 0:03:12]} 37. Kf3 {[%emt 0:01:25]} f5 {[%emt 0:02:52]} 38. exf6+ {[%emt 0:02:23]} gxf6 {[%emt 0:00:06]} 39. d4 {[%emt 0:00:48]} Rd1 {[%emt 0:09:17]} 40. Kg4 {[%emt 0:00:34]} Rxd4+ {[%emt 0:02:17]} 41. Kh5 {[%emt 0:30:29]} Kf7 {[%emt 0:30:59]} 42. Rc2 {[%emt 0:00:49]} f5 {[%emt 0:00:00]} (42... e5 $142 43. g4 e4) 43. Kxh6 {[%emt 0:00:00]} (43. g4 {keeps fighting.}) 43... Kf6 {[%emt 0:00:00]} 44. Kh5 {[%emt 0:00:00]} Rd3 $2 {[%emt 0:00:00]} (44... Rd8 $19 {[%cal Rd8h8]} 45. Kh4 Rg8) 45. Kh4 {[%emt 0:00:00]} Rb3 {[%emt 0:00:00]} 46. g4 {[%emt 0:00:00]} f4 {[%emt 0:00:00]} 47. Rg2 {[%emt 0:00:00]} e5 {[%emt 0:00:00]} 48. g5+ {[%emt 0:00:00]} Kg6 {[%emt 0:00:00]} 49. Kg4 {[%emt 0:00:00]} f3 {[%emt 0:01:24]} 50. Rf2 {[%emt 0:00:00]} e4 {[%emt 0:00:31]} 51. h4 {[%emt 0:00:00]} Kg7 {[%emt 0:02:41]} 52. Rc2 {[%emt 0:00:00]} Rd3 {[%emt 0:02:36]} 53. h5 {[%emt 0:00:00]} Rd7 {[%emt 0:00:42]} 54. h6+ {[%emt 0:00:00]} Kf7 {[%emt 0:01:38]} 55. Rc6 {[%emt 0:00:00]} f2 {[%emt 0:01:33]} 56. Rf6+ Kg8 57. Rxf2 {[%emt 0:00:00]} Kh7 {[%emt 0:00:42]} 58. Kh5 {[%emt 0:00:00]} Rd5 {[%emt 0:00:51]} 59. Rf7+ {[%emt 0:00:00]} Kg8 {[%emt 0:00:07]} 60. h7+ {[%emt 0:01:18]} Kxf7 {[%emt 0:00:50]} 61. h8=Q {[%emt 0:00:15]} Rf5 {[%emt 0:00:52]} 62. Qc8 {[%emt 0:01:34]} Re5 {[%emt 0:00:19]} 63. Qc7+ {[%emt 0:00:34]} Ke6 {[%emt 0:00:23]} 64. Qc6+ {[%emt 0:00:08] Kd5} 1-0

[Event "EYTCC U18 Girls 2018"]
[Site "Bad Blankeburg"]
[Date "2018.07.18"]
[Round "7"]
[White "Cvitan, Ena"]
[Black "Antolak, Julia"]
[Result "0-1"]
[ECO "E49"]
[WhiteElo "2125"]
[BlackElo "2282"]
[Annotator "NA"]
[PlyCount "48"]
[EventDate "2018.07.12"]
[EventType "swiss"]
[EventCountry "GER"]
[SourceTitle "playchess.com"]
[Source "ChessBase"]
[SourceQuality "1"]
[WhiteTeam "Croatia"]
[BlackTeam "Poland"]
[WhiteTeamCountry "CRO"]
[BlackTeamCountry "POL"]
[TimeControl "40/5400+30:1800+30"]

1. d4 {[%emt 0:00:00]} Nf6 {[%emt 0:00:00]} 2. c4 {[%emt 0:00:00]} e6 {[%emt 0:00:00]} 3. Nc3 {[%emt 0:00:03]} Bb4 {[%emt 0:00:01]} 4. e3 {[%emt 0:00:03]} O-O {[%emt 0:01:53]} 5. Bd3 {[%emt 0:00:06]} d5 {[%emt 0:02:03]} 6. a3 {[%emt 0:01:03]} Bxc3+ {[%emt 0:05:13]} 7. bxc3 {[%emt 0:00:29]} dxc4 {[%emt 0:00:58]} 8. Bxc4 {[%emt 0:00:09] LiveBook: 317 Games} c5 {[%emt 0:00:27]} 9. Ne2 {[%emt 0:05:31]} b6 {[%emt 0:02:18] E49: Nimzo-Indian: Rubinstein: 5 Bd3 d5 6 a3 Bxc3+ 7 bxc3} 10. O-O {[%emt 0:01:17]} Bb7 {[%emt 0:01:36]} (10... Qc7 11. Ba2 Rd8 12. Bb2 Ba6 13. Rc1 Nc6 14. c4 cxd4 15. exd4 Ng4 16. Ng3 Qf4 17. h3 {0-1 (38) Rakhmanov,A (2653)-Mamedyarov,S (2799) Riadh 2017}) 11. Bb2 {[%emt 0:08:57]} Qc7 {[%emt 0:02:30]} 12. Rc1 $146 {[%emt 0:01:53]} ({Predecessor:} 12. Bd3 Nbd7 13. Ng3 e5 14. f3 Rad8 15. Rc1 Rfe8 16. e4 exd4 17. cxd4 {½-½ (50) Ebrahim Shirazi,B (2025)-Haynes,N (2182) Edmonton 2016}) 12... Rd8 {[%emt 0:02:14]} 13. f3 {[%emt 0:11:22]} Nc6 {[%emt 0:14:04]} 14. Qe1 {[%emt 0:13:19]} Rac8 {[%emt 0:03:36]} 15. Bd3 {[%emt 0:08:00]} e5 {[%emt 0:11:33]} 16. Bf5 {[%emt 0:06:07]} Rb8 {[%emt 0:03:20]} 17. Qf2 {[%emt 0:05:09]} Na5 {[%emt 0:04:45]} 18. c4 {[%emt 0:02:12]} exd4 {[%emt 0:10:19]} 19. exd4 {[%emt 0:00:18]} cxd4 {[%emt 0:01:08]} 20. Bxd4 {[%emt 0:03:17]} Nb3 {[%emt 0:08:44]} 21. Bxf6 $1 {[%emt 0:07:44]} Nxc1 {[%emt 0:00:23]} 22. Qh4 {[%emt 0:14:53]} Nxe2+ $19 {[%emt 0:04:27]} 23. Kh1 {[%emt 0:00:01]} gxf6 {[%emt 0:00:47]} 24. Qh6 {[%emt 0:04:41]} Qf4 {[%emt 0:01:53]} 0-1

[Event "EYTCC U18 Girls 2018"]
[Site "Bad Blankeburg"]
[Date "2018.07.18"]
[Round "7"]
[White "Rozman, Monika"]
[Black "Injac, Teodora"]
[Result "1/2-1/2"]
[ECO "B90"]
[WhiteElo "2125"]
[BlackElo "2302"]
[Annotator "NA"]
[PlyCount "88"]
[EventDate "2018.07.12"]
[EventType "swiss"]
[EventCountry "GER"]
[SourceTitle "playchess.com"]
[Source "ChessBase"]
[SourceQuality "1"]
[WhiteTeam "Slovenia"]
[BlackTeam "Serbia"]
[WhiteTeamCountry "SLO"]
[BlackTeamCountry "SRB"]
[TimeControl "40/5400+30:1800+30"]

1. e4 {[%emt 0:00:00]} c5 {[%emt 0:00:00]} 2. Nf3 {[%emt 0:00:01]} d6 {[%emt 0:00:00]} 3. d4 {[%emt 0:01:53]} cxd4 {[%emt 0:00:34]} 4. Nxd4 {[%emt 0:00:06]} Nf6 {[%emt 0:00:03]} 5. Nc3 {[%emt 0:00:22]} a6 {[%emt 0:00:05]} 6. Be3 {[%emt 0:01:53]} e5 {[%emt 0:00:06]} 7. Nf3 {[%emt 0:00:08]} Nc6 {[%emt 0:00:28]} 8. Bc4 {[%emt 0:02:06]} Be6 {[%emt 0:00:44]} 9. Bb3 {[%emt 0:03:33]} Be7 {[%emt 0:00:43]} 10. O-O {[%emt 0:00:26]} O-O {[%emt 0:00:36]} 11. Bg5 {[%emt 0:02:56]} Nd7 {[%emt 0:03:07] B90: Sicilian Najdorf: Unusual White 6th moves, 6 Be3 Ng4 and 6 Be3 e5} 12. Bxe7 {[%emt 0:03:01]} Qxe7 {[%emt 0:00:03]} 13. Qd2 {[%emt 0:03:58] LiveBook: 4 Games} Nc5 {[%emt 0:07:39]} 14. Rad1 {[%emt 0:02:22]} Rad8 {[%emt 0:08:45] [#]} 15. Bd5 $146 {[%emt 0:04:34]} ({Predecessor:} 15. Qe3 Nxb3 16. axb3 f5 17. Nd5 Qd7 18. Nb6 Qe7 19. Nd5 {½-½ (44) Triapishko,O (2508)-Aravindh,C (2572) Tarvisio 2017}) 15... Bg4 {[%emt 0:05:30]} 16. Qe3 Qf6 {[%emt 0:14:45]} (16... Bxf3 $5 17. Qxf3 Nd4 $15) 17. Ne2 {[%emt 0:14:48]} Nb4 {[%emt 0:21:34]} 18. Rd2 {[%emt 0:08:35]} Nxd5 {[%emt 0:04:42]} 19. Rxd5 {[%emt 0:00:28]} Qg6 {[%emt 0:07:43]} 20. Ng3 {[%emt 0:01:05]} Ne6 {[%emt 0:03:35]} 21. Rfd1 {[%emt 0:09:50]} Nf4 {[%emt 0:01:22]} 22. R5d2 {[%emt 0:00:48]} Qf6 {[%emt 0:06:33]} 23. Qa3 {[%emt 0:02:13]} d5 {[%emt 0:00:51]} 24. exd5 {[%emt 0:04:19]} Nh3+ {[%emt 0:00:17]} 25. Kh1 {[%emt 0:09:39]} Ng5 $2 {[%emt 0:04:46]} (25... Qf4 $11 {and Black has nothing to worry.}) 26. Nxg5 {[%emt 0:01:45]} Bxd1 {[%emt 0:02:04]} 27. N5e4 {[%emt 0:02:37]} Qg6 {[%emt 0:02:55]} 28. Rxd1 {[%emt 0:00:58]} f5 {[%emt 0:00:03]} 29. Nc5 {[%emt 0:05:05]} f4 {[%emt 0:00:20]} 30. Nf1 {[%emt 0:00:16]} ({Inferior is} 30. Nxb7 Rb8 $17) ({Weaker is} 30. Nge4 b6 $18) 30... Qxc2 {[%emt 0:01:10]} 31. Rd2 {[%emt 0:00:55]} Qc4 {[%emt 0:01:31]} 32. Kg1 {[%emt 0:00:50]} Rxd5 {[%emt 0:00:37]} 33. Rxd5 {[%emt 0:01:46]} Qxd5 {[%emt 0:00:01]} 34. Qb3 {[%emt 0:02:21]} Qxb3 {[%emt 0:00:36]} 35. axb3 {[%emt 0:00:22]} Rc8 {[%emt 0:00:32]} 36. Nxb7 {[%emt 0:05:17]} Rc2 {[%emt 0:00:18]} 37. h4 {[%emt 0:00:02]} Rxb2 {[%emt 0:01:23]} 38. Nc5 {[%emt 0:00:05]} a5 {[%emt 0:00:37]} 39. g3 {[%emt 0:01:19]} Kf7 {[%emt 0:01:16]} 40. Kg2 {[%emt 0:02:21]} Ke7 {[%emt 0:00:20]} 41. gxf4 {[%emt 0:34:18]} exf4 {[%emt 0:02:28]} 42. Kf3 {[%emt 0:00:00]} h5 {[%emt 0:03:20]} 43. Kg2 {[%emt 0:00:00]} Kf6 {[%emt 0:06:47]} 44. Nd2 {[%emt 0:00:00]} Kf5 $11 {[%emt 0:01:20]} 1/2-1/2